bitfinex-derivatives/quotes_SOLF0:USTF0_20250911
["timestamp","ask_amount","ask_price","bid_price","bid_amount"]
[1757575213150,7.41,222.45,222.34,7.6]
[1757575213349,7.41,222.45,222.34,9.26622921]
[1757575213551,7.41,222.45,222.34,7.6]
[1757575213751,7.41,222.45,222.34,9.26622921]
[1757575214350,7.41,222.45,222.34,7.6]
[1757575214552,7.41,222.45,222.36,7.6]
[1757575215156,7.41,222.45,222.38,0.03095231]
[1757575222265,7.41,222.45,222.38,7.63095231]
[1757575227866,7.41,222.45,222.38,9.29718152]
[1757575228367,7.41,222.45,222.38,7.63095231]
[1757575228566,7.41,222.45,222.38,9.29718152]
[1757575229465,7.41,222.45,222.38,7.63095231]
[1757575229767,7.41,222.45,222.38,9.29718152]
[1757575230566,7.41,222.45,222.38,7.63095231]
[1757575231466,7.41,222.45,222.38,9.29718152]
[1757575236669,1.66622921,222.49,222.38,7.63095231]
[1757575236876,7.01,222.48,222.38,0.03095231]
[1757575237075,7.01,222.45,222.38,0.03095231]
[1757575241472,8.67622921,222.45,222.38,0.03095231]
[1757575242875,7.01,222.45,222.38,0.03095231]
[1757575243176,8.67622921,222.45,222.38,0.03095231]
[1757575252982,7.01,222.45,222.38,0.03095231]
[1757575260388,2.0,222.51,222.39,7.39]
[1757575260588,7.53,222.5,222.39,7.39]
[1757575260787,7.53,222.5,222.41,7.39]
[1757575261086,7.53,222.5,222.42,0.03285811]
[1757575261285,7.53,222.5,222.43,7.39]
[1757575261486,2.0,222.51,222.44,2.60024119]
[1757575261688,2.0,222.51,222.45,7.39]
[1757575261889,2.0,222.51,222.47,7.39]
[1757575262188,7.53,222.5,222.47,7.39]
[1757575262488,7.53,222.5,222.47,7.4205174]
[1757575263988,7.53,222.5,222.47,0.0305174]
[1757575264191,7.53,222.5,222.48,7.39]
[1757575264792,9.53,222.51,222.48,7.39]
[1757575265589,7.53,222.5,222.47,0.0305174]
[1757575265989,7.53,222.5,222.47,7.4205174]
[1757575266295,2.0,222.51,222.47,7.4205174]
[1757575266593,7.53,222.5,222.47,7.4205174]
[1757575269996,7.53,222.5,222.48,7.39]
[1757575270195,2.0,222.51,222.48,7.39]
[1757575270395,9.53,222.51,222.47,0.0305174]
[1757575270597,9.53,222.51,222.48,7.39]
[1757575271194,9.53,222.51,222.47,0.0305174]
[1757575271595,9.53,222.51,222.48,7.39]
[1757575272099,2.0,222.51,222.48,7.39]
[1757575272299,2.0,222.51,222.47,0.0305174]
[1757575272499,2.0,222.51,222.48,7.39]
[1757575272700,2.0,222.51,222.47,0.0305174]
[1757575272898,2.0,222.51,222.48,7.39]
[1757575273299,9.53,222.51,222.48,7.39]
[1757575274595,7.53,222.5,222.48,7.39]
[1757575275300,2.0,222.51,222.47,0.0305174]
[1757575275601,7.53,222.5,222.47,7.4205174]
[1757575277001,7.53,222.5,222.47,0.0305174]
[1757575277202,2.0,222.51,222.47,0.0305174]
[1757575277403,7.53,222.5,222.47,0.0305174]
[1757575277601,2.0,222.51,222.47,0.0305174]
[1757575278099,7.53,222.5,222.47,0.0305174]
[1757575279302,2.0,222.51,222.47,0.0305174]
[1757575279596,7.53,222.5,222.47,0.0305174]
[1757575280100,2.0,222.51,222.47,0.0305174]
[1757575280295,7.53,222.5,222.47,0.0305174]
[1757575280492,2.0,222.51,222.47,0.0305174]
[1757575281500,7.53,222.5,222.47,0.0305174]
[1757575281997,2.0,222.51,222.47,0.0305174]
[1757575282402,7.53,222.5,222.47,0.0305174]
[1757575283001,2.0,222.51,222.47,0.0305174]
[1757575283402,7.53,222.5,222.47,0.0305174]
[1757575283601,2.0,222.51,222.47,0.0305174]
[1757575283998,7.53,222.5,222.47,0.0305174]
[1757575284195,2.0,222.51,222.47,0.0305174]
[1757575284405,7.53,222.5,222.47,0.0305174]
[1757575284607,2.0,222.51,222.47,0.0305174]
[1757575284797,7.53,222.5,222.47,0.0305174]
[1757575285001,2.0,222.51,222.47,0.0305174]
[1757575286900,7.53,222.5,222.47,0.0305174]
[1757575287101,2.0,222.51,222.47,0.0305174]
[1757575287306,7.23,222.5,222.47,0.0305174]
[1757575287601,2.0,222.51,222.47,0.0305174]
[1757575287798,7.23,222.5,222.47,0.0305174]
[1757575288401,2.0,222.51,222.47,0.0305174]
[1757575288704,7.23,222.5,222.47,0.0305174]
[1757575288901,2.0,222.51,222.47,0.0305174]
[1757575289102,7.23,222.5,222.47,0.0305174]
[1757575289899,2.0,222.51,222.47,0.0305174]
[1757575290309,7.23,222.5,222.47,0.0305174]
[1757575290510,2.0,222.51,222.47,0.0305174]
[1757575290898,7.23,222.5,222.47,0.0305174]
[1757575291508,2.0,222.51,222.47,0.0305174]
[1757575291709,7.23,222.5,222.47,0.0305174]
[1757575291903,2.0,222.51,222.47,0.0305174]
[1757575292104,7.23,222.5,222.47,0.0305174]
[1757575292600,2.0,222.51,222.47,0.0305174]
[1757575292801,7.23,222.5,222.47,0.0305174]
[1757575293007,9.23,222.51,222.47,0.0305174]
[1757575293711,9.23,222.51,222.48,7.61]
[1757575293902,9.23,222.51,222.47,0.0305174]
[1757575294704,9.23,222.51,222.48,7.61]
[1757575295204,9.23,222.51,222.47,0.0305174]
[1757575295410,9.23,222.51,222.48,7.61]
[1757575298212,7.23,222.5,222.48,7.61]
[1757575303018,2.0,222.51,222.47,0.0305174]
[1757575303318,7.23,222.5,222.47,7.6405174]
[1757575303820,7.23,222.5,222.48,7.61]
[1757575304016,2.0,222.51,222.47,0.0305174]
[1757575304318,2.0,222.51,222.48,7.61]
[1757575304520,2.0,222.51,222.47,0.0305174]
[1757575304923,2.0,222.51,222.48,7.61]
[1757575305114,2.0,222.51,222.47,0.0305174]
[1757575306317,7.23,222.56,222.48,7.61]
[1757575315426,7.23,222.62,222.48,7.61]
[1757575316130,7.23,222.62,222.53,0.03185061]
[1757575316330,2.60024119,222.65,222.54,37.18]
[1757575316526,7.23,222.64,222.54,37.18]
[1757575316732,2.60024119,222.65,222.54,37.18]
[1757575316933,7.23,222.64,222.57,0.0321043]
[1757575322436,8.89191685,222.64,222.57,0.0321043]
[1757575322836,7.23,222.64,222.57,0.0321043]
[1757575323437,0.03075178,222.63,222.57,0.0321043]
[1757575323938,7.03,222.62,222.57,0.0321043]
[1757575324141,0.03075178,222.63,222.57,0.0321043]
[1757575324329,7.03,222.62,222.57,0.0321043]
[1757575324638,7.06075178,222.63,222.57,7.3221043]
[1757575325834,7.06075178,222.63,222.57,0.0321043]
[1757575326039,7.03,222.59,222.57,0.0321043]
[1757575328439,1.66191685,222.6,222.57,0.0321043]
[1757575328837,7.03,222.59,222.57,0.0321043]
[1757575329137,1.66191685,222.6,222.57,0.0321043]
[1757575330032,7.03,222.59,222.57,0.0321043]
[1757575330236,1.66191685,222.6,222.57,0.0321043]
[1757575330538,7.03,222.59,222.57,0.0321043]
[1757575332939,0.03075178,222.63,222.57,0.0321043]
[1757575333139,7.03,222.62,222.57,0.0321043]
[1757575333541,1.66191685,222.6,222.57,0.0321043]
[1757575333842,7.03,222.59,222.57,0.0321043]
[1757575334043,0.03075178,222.63,222.57,0.0321043]
[1757575334342,8.69191685,222.62,222.57,0.0321043]
[1757575338247,1.66191685,222.61,222.57,0.0321043]
[1757575338449,7.03,222.6,222.57,0.0321043]
[1757575339441,1.66191685,222.61,222.57,0.0321043]
[1757575339645,7.03,222.6,222.57,0.0321043]
[1757575339846,1.66191685,222.61,222.57,0.0321043]
[1757575340248,7.03,222.6,222.57,0.0321043]
[1757575340447,0.03075178,222.63,222.57,0.0321043]
[1757575340648,7.03,222.62,222.57,0.0321043]
[1757575341647,1.69266863,222.63,222.57,0.0321043]
[1757575341842,7.03,222.62,222.57,0.0321043]
[1757575342353,1.69266863,222.63,222.57,0.0321043]
[1757575342750,7.03,222.62,222.57,0.0321043]
[1757575342950,1.69266863,222.63,222.57,0.0321043]
[1757575343151,7.03,222.62,222.57,0.0321043]
[1757575343354,0.03075178,222.63,222.57,0.0321043]
[1757575343554,7.03,222.62,222.57,0.0321043]
[1757575343756,0.03075178,222.63,222.57,0.0321043]
[1757575345052,7.03,222.62,222.57,0.0321043]
[1757575345252,0.03075178,222.63,222.57,0.0321043]
[1757575345452,7.03,222.62,222.57,0.0321043]
[1757575345854,0.03075178,222.63,222.57,0.0321043]
[1757575346054,7.03,222.62,222.57,0.0321043]
[1757575346352,0.03075178,222.63,222.57,0.0321043]
[1757575346553,7.03,222.62,222.57,0.0321043]
[1757575346759,0.03075178,222.63,222.57,0.0321043]
[1757575347355,7.34,222.62,222.57,0.0321043]
[1757575347551,0.03075178,222.63,222.57,0.0321043]
[1757575347954,7.37075178,222.63,222.57,7.4321043]
[1757575348358,7.37075178,222.63,222.57,0.0321043]
[1757575354367,9.03266863,222.63,222.57,0.0321043]
[1757575363770,7.37075178,222.63,222.57,0.0321043]
[1757575387592,7.37075178,222.63,222.58,7.61]
[1757575387990,7.37075178,222.63,222.57,2.62861213]
[1757575388290,7.37075178,222.63,222.58,7.61]
[1757575388791,7.37075178,222.63,222.57,2.62861213]
[1757575388986,7.37075178,222.63,222.58,7.61]
[1757575389292,7.64075178,222.63,222.57,10.23861213]
[1757575396196,7.64075178,222.63,222.57,7.6421043]
[1757575396390,7.64075178,222.63,222.57,0.0321043]
[1757575405503,7.61,222.59,222.48,13.82]
[1757575405702,2.59650783,222.6,222.48,13.82]
[1757575406298,7.61,222.59,222.48,13.82]
[1757575406505,7.61,222.7,222.49,7.61]
[1757575406698,7.61,222.63,222.49,7.61]
[1757575418508,2.59650783,222.64,222.5,110.18]
[1757575418906,7.52,222.63,222.5,110.18]
[1757575419111,2.59650783,222.64,222.5,110.18]
[1757575419608,7.52,222.63,222.5,110.18]
[1757575420415,2.59650783,222.64,222.5,110.18]
[1757575420807,7.52,222.63,222.5,110.18]
[1757575421414,2.59650783,222.64,222.5,110.18]
[1757575422120,7.52,222.63,222.5,110.18]
[1757575422319,2.59650783,222.64,222.5,110.18]
[1757575422517,7.52,222.63,222.51,7.51]
[1757575425724,7.52,222.63,222.55,0.03066769]
[1757575428328,7.52,222.63,222.56,7.51]
[1757575429226,7.52,222.69,222.56,7.51]
[1757575429828,7.52,222.69,222.6,0.03011898]
[1757575433035,7.52,222.69,222.6,7.54011898]
[1757575435938,7.52,222.69,222.6,2.62662681]
[1757575436240,7.52,222.69,222.61,7.51]
[1757575446145,2.0,222.71,222.61,7.51]
[1757575455548,7.47,222.7,222.61,7.51]
[1757575459950,7.47,222.7,222.63,7.48]
[1757575460947,9.13124665,222.7,222.63,7.48]
[1757575476575,7.47,222.7,222.63,7.48]
[1757575476775,9.13124665,222.7,222.63,7.48]
[1757575476976,7.47,222.7,222.63,7.48]
[1757575477177,9.13124665,222.7,222.63,7.48]
[1757575478372,7.47,222.7,222.63,7.48]
[1757575478676,9.13124665,222.7,222.63,7.48]
[1757575482181,20.83,222.71,222.63,7.48]
[1757575482381,20.83,222.71,222.63,9.14124665]
[1757575482773,20.83,222.71,222.65,0.02958426]
[1757575483478,13.22,222.71,222.66,7.09]
[1757575483977,13.22,222.71,222.65,0.02958426]
[1757575484879,13.22,222.71,222.66,110.0]
[1757575485078,13.22,222.71,222.65,0.02958426]
[1757575485278,13.22,222.71,222.67,7.09]
[1757575485479,13.22,222.71,222.65,0.02958426]
[1757575485683,13.22,222.71,222.67,7.09]
[1757575486482,13.22,222.71,222.69,7.09]
[1757575487780,20.83,222.71,222.69,7.09]
[1757575488983,9.27124665,222.7,222.65,0.02958426]
[1757575492693,7.61,222.66,222.65,0.02958426]
[1757575498794,7.51,222.66,222.56,99.87]
[1757575499096,7.51,222.63,222.56,99.87]
[1757575500096,0.0328234,222.62,222.56,99.87]
[1757575500494,0.0328234,222.62,222.56,7.05]
[1757575500690,7.51,222.61,222.54,109.98]
[1757575500895,7.51,222.6,222.54,109.98]
[1757575501096,1.66124665,222.61,222.54,109.98]
[1757575501590,7.51,222.6,222.54,109.98]
[1757575502194,7.51,222.57,222.54,109.98]
[1757575502394,1.66124665,222.58,222.54,109.98]
[1757575502598,7.51,222.57,222.54,109.98]
[1757575502896,1.66124665,222.58,222.54,109.98]
[1757575503294,7.51,222.57,222.51,301.7]
[1757575503498,0.0328234,222.62,222.48,117.03]
[1757575503697,7.51,222.54,222.52,0.03206933]
[1757575504098,7.51,222.54,222.48,117.03]
[1757575504499,7.51,222.54,222.49,0.02845912]
[1757575505100,1.66124665,222.55,222.49,0.02845912]
[1757575505501,7.51,222.54,222.49,0.02845912]
[1757575505701,1.66124665,222.55,222.49,0.02845912]
[1757575506001,9.17124665,222.56,222.49,0.02845912]
[1757575506297,7.51,222.56,222.49,0.02845912]
[1757575507401,7.51,222.56,222.5,7.05]
[1757575516603,7.51,222.56,222.49,0.02845912]
[1757575518105,7.51,222.53,222.49,0.02845912]
[1757575520108,2.59894328,222.54,222.49,0.02845912]
[1757575520608,7.51,222.53,222.49,0.02845912]
[1757575521007,2.59894328,222.54,222.49,0.02845912]
[1757575521208,7.51,222.53,222.49,0.02845912]
[1757575524209,2.59894328,222.54,222.49,0.02845912]
[1757575524406,7.51,222.53,222.49,0.02845912]
[1757575528214,7.49,222.53,222.49,0.02845912]
[1757575532714,7.37,222.53,222.49,0.02845912]
[1757575532911,11.84894328,222.54,222.49,0.02845912]
[1757575533317,7.37,222.53,222.49,0.02845912]
[1757575533718,7.37,222.53,222.49,7.58845912]
[1757575534115,9.25,222.54,222.49,7.58845912]
[1757575534116,7.37,222.52,222.49,7.58845912]
[1757575536122,7.37,222.53,222.5,7.56]
[1757575536323,7.37,222.52,222.49,0.02845912]
[1757575536625,7.37,222.52,222.49,7.58845912]
[1757575537824,9.25,222.54,222.49,7.58845912]
[1757575538022,7.37,222.53,222.49,7.58845912]
[1757575538523,9.25,222.54,222.49,0.02845912]
[1757575538725,7.37,222.53,222.5,7.56]
[1757575539726,7.37,222.52,222.49,7.58845912]
[1757575542225,7.37,222.53,222.49,7.58845912]
[1757575542431,9.25,222.54,222.49,0.02845912]
[1757575543126,7.37,222.53,222.49,0.02845912]
[1757575543729,7.37,222.53,222.49,7.58845912]
[1757575544327,7.37,222.52,222.49,7.58845912]
[1757575544528,7.37,222.53,222.49,7.58845912]
[1757575544837,7.37,222.53,222.49,0.02845912]
[1757575545023,7.37,222.51,222.37,7.56]
[1757575545227,2.59894328,222.48,222.37,7.56]
[1757575545429,7.37,222.47,222.33,12.84]
[1757575545730,7.37,222.47,222.33,7.56]
[1757575546331,0.03135766,222.42,222.33,7.56]
[1757575546629,7.40135766,222.42,222.33,7.56]
[1757575548322,7.38135766,222.42,222.33,7.56]
[1757575560542,0.01135766,222.42,222.36,6.93]
[1757575562947,7.7,222.41,222.36,6.93]
[1757575568355,7.7,222.41,222.38,1.66429325]
[1757575568552,7.7,222.41,222.39,6.93]
[1757575568752,7.7,222.41,222.38,1.66429325]
[1757575569551,7.7,222.41,222.39,6.93]
[1757575569955,7.7,222.41,222.38,1.66429325]
[1757575570551,7.7,222.41,222.32,6.93]
[1757575570756,7.7,222.41,222.37,1.66429325]
[1757575570957,7.7,222.41,222.38,6.93]
[1757575571159,7.7,222.41,222.26,13.97724035]
[1757575571160,6.97,222.4,222.37,6.93]
[1757575571360,7.7,222.41,222.35,1.66429325]
[1757575571560,6.97,222.4,222.35,1.66429325]
[1757575571859,6.97,222.4,222.33,6.93]
[1757575578467,6.97,222.37,222.3,71.57]
[1757575578763,6.97,222.37,222.3,117.49]
[1757575578962,0.03128019,222.36,222.3,117.49]
[1757575583670,0.03128019,222.36,222.3,110.56]
[1757575583865,0.03128019,222.36,222.31,6.93]
[1757575584064,0.03128019,222.36,222.31,8.59429325]
[1757575584359,7.7,222.41,222.31,8.59429325]
[1757575584560,7.7,222.41,222.32,6.93]
[1757575586166,7.7,222.41,222.34,6.93]
[1757575589073,7.7,222.41,222.35,1.66429325]
[1757575589565,7.7,222.41,222.36,6.98]
[1757575589766,7.7,222.41,222.35,1.66429325]
[1757575590474,7.7,222.41,222.36,6.98]
[1757575590974,7.7,222.41,222.38,1.66429325]
[1757575591272,7.7,222.41,222.4,6.98]
[1757575591574,7.7,222.41,222.39,110.34]
[1757575592173,7.7,222.41,222.39,117.32]
[1757575592875,15.07,222.41,222.39,110.34]
[1757575593175,15.07,222.41,222.4,110.3]
[1757575598181,7.7,222.41,222.4,110.3]
[1757575599478,15.07,222.41,222.4,110.3]
[1757575599880,7.7,222.41,222.4,110.3]
[1757575600282,7.7,222.41,222.4,117.28]
[1757575600982,9.03429325,222.43,222.4,117.28]
[1757575603684,10.04,222.42,222.4,117.28]
[1757575605683,10.04,222.42,222.41,6.98]
[1757575610883,9.77181437,222.42,222.41,6.98]
[1757575611278,9.77181437,222.42,222.41,7.42]
[1757575619290,9.77181437,222.42,222.41,6.98]
[1757575620286,9.77181437,222.42,222.41,7.42]
[1757575620590,4.77181437,222.42,222.41,7.42]
[1757575622391,4.77181437,222.42,222.41,117.06]
[1757575623490,4.77181437,222.42,222.36,7.26]
[1757575623689,12.05181437,222.42,222.38,7.26]
[1757575624687,7.28,222.41,222.39,72.34]
[1757575626397,12.05181437,222.42,222.4,7.26]
[1757575627690,12.05181437,222.42,222.39,72.34]
[1757575627892,12.05181437,222.42,222.39,79.6]
[1757575628190,7.28,222.41,222.4,110.08]
[1757575628786,7.28,222.41,222.34,301.98]
[1757575628988,7.28,222.37,222.35,110.08]
[1757575629388,1.66429325,222.38,222.35,110.08]
[1757575629588,7.28,222.37,222.35,110.08]
[1757575631095,7.28,222.37,222.35,110.06]
[1757575633593,2.60260373,222.4,222.35,110.06]
[1757575634488,7.28,222.39,222.35,110.06]
[1757575634889,7.28,222.39,222.35,117.32]
[1757575635094,2.60260373,222.4,222.35,117.32]
[1757575635394,7.28,222.39,222.35,117.32]
[1757575635689,7.3744181,222.42,222.35,117.32]
[1757575635891,4.77181437,222.42,222.36,7.26]
[1757575636594,7.28,222.41,222.37,117.34]
[1757575636790,4.77181437,222.42,222.37,110.08]
[1757575636990,4.77181437,222.42,222.38,7.26]
[1757575637194,7.28,222.41,222.37,110.08]
[1757575637397,4.77181437,222.42,222.37,110.08]
[1757575637696,7.28,222.41,222.37,117.34]
[1757575638286,4.77181437,222.42,222.37,117.34]
[1757575638589,7.28,222.41,222.38,7.26]
[1757575638988,7.28,222.44,222.37,117.34]
[1757575641598,7.28,222.44,222.37,110.08]
[1757575641792,7.28,222.44,222.38,7.26]
[1757575642196,7.28,222.48,222.38,7.26]
[1757575643798,10.94,222.47,222.38,7.26]
[1757575645994,7.28,222.46,222.38,7.26]
[1757575646498,7.28,222.46,222.39,110.08]
[1757575646698,7.28,222.46,222.38,7.26]
[1757575646899,10.94,222.47,222.39,110.08]
[1757575647202,7.18,222.46,222.39,110.08]
[1757575649513,2.60260373,222.44,222.34,309.63]
[1757575649706,7.18,222.43,222.35,110.08]
[1757575651114,7.18,222.43,222.35,110.06]
[1757575653013,7.18,222.43,222.36,7.65]
[1757575656921,7.18,222.43,222.35,110.06]
[1757575657219,2.60260373,222.44,222.35,110.06]
[1757575657613,7.18,222.39,222.35,110.06]
[1757575658021,7.18,222.39,222.35,117.71]
[1757575658222,7.18,222.46,222.36,7.65]
[1757575658422,7.18,222.43,222.36,7.65]
[1757575671231,7.18,222.43,222.36,7.63]
[1757575677940,0.03256038,222.42,222.37,0.03106389]
[1757575678635,0.03256038,222.42,222.38,7.6]
[1757575682743,10.94,222.47,222.43,7.6]
[1757575682942,10.94,222.47,222.45,7.6]
[1757575683441,18.08,222.47,222.44,110.08]
[1757575684440,7.14,222.46,222.44,110.08]
[1757575684942,10.94,222.47,222.44,110.08]
[1757575685337,10.94,222.47,222.45,110.08]
[1757575685545,7.14,222.46,222.45,110.08]
[1757575687544,7.14,222.46,222.43,0.03124808]
[1757575687943,7.14,222.46,222.43,7.05124808]
[1757575688145,7.14,222.46,222.43,0.03124808]
[1757575691042,7.14,222.46,222.43,0.01124808]
[1757575691646,10.94,222.47,222.43,0.01124808]
[1757575691845,7.14,222.46,222.43,0.01124808]
[1757575692046,10.94,222.47,222.43,0.01124808]
[1757575692444,7.14,222.44,222.43,0.01124808]
[1757575711165,1.66461517,222.45,222.4,13.69124808]
[1757575711365,6.96,222.44,222.4,13.69124808]
[1757575711566,1.66461517,222.45,222.4,13.69124808]
[1757575712266,6.96,222.44,222.4,13.69124808]
[1757575713567,6.96,222.44,222.4,21.25124808]
[1757575713768,14.55,222.44,222.4,21.25124808]
[1757575713966,6.96,222.43,222.4,21.25124808]
[1757575714168,14.55,222.44,222.4,21.25124808]
[1757575714768,6.96,222.43,222.4,21.25124808]
[1757575714967,14.55,222.44,222.4,21.25124808]
[1757575715469,6.96,222.43,222.4,21.25124808]
[1757575716465,6.96,222.43,222.4,13.69124808]
[1757575716672,6.96,222.43,222.4,21.25124808]
[1757575716966,14.55,222.44,222.4,13.69124808]
[1757575717472,14.55,222.44,222.41,7.56]
[1757575718362,14.55,222.44,222.4,13.69124808]
[1757575718570,14.55,222.44,222.41,7.56]
[1757575719166,14.55,222.44,222.4,13.69124808]
[1757575720766,14.55,222.44,222.41,7.56]
[1757575721274,14.55,222.44,222.4,13.69124808]
[1757575722075,14.55,222.44,222.41,7.56]
[1757575722274,6.96,222.43,222.41,7.56]
[1757575722570,14.55,222.44,222.4,13.69124808]
[1757575722873,14.55,222.44,222.41,7.56]
[1757575723072,14.55,222.44,222.4,13.69124808]
[1757575723271,14.55,222.44,222.41,7.56]
[1757575723473,14.55,222.44,222.4,13.69124808]
[1757575723873,21.51,222.44,222.41,7.56]
[1757575725680,6.96,222.43,222.41,7.56]
[1757575730485,14.55,222.44,222.41,7.56]
[1757575730683,14.55,222.44,222.4,13.69124808]
[1757575730884,14.55,222.44,222.41,7.56]
[1757575731079,21.51,222.44,222.41,7.56]
[1757575732084,6.96,222.43,222.32,7.56]
[1757575732281,6.96,222.43,222.39,41.28]
[1757575732476,6.96,222.42,222.39,41.28]
[1757575732686,6.96,222.43,222.39,41.28]
[1757575734989,6.96,222.42,222.39,41.28]
[1757575735283,6.96,222.43,222.39,33.72]
[1757575735981,6.96,222.43,222.39,41.28]
[1757575736186,6.96,222.42,222.39,41.28]
[1757575737484,6.96,222.42,222.39,33.72]
[1757575737788,6.96,222.42,222.4,7.57]
[1757575738989,16.21461517,222.44,222.4,7.57]
[1757575739189,7.3,222.43,222.4,7.57]
[1757575739390,16.21461517,222.44,222.4,7.57]
[1757575739993,7.3,222.43,222.4,7.57]
[1757575740592,16.21461517,222.44,222.4,7.57]
[1757575740793,7.3,222.43,222.4,7.57]
[1757575741594,16.21461517,222.44,222.4,7.57]
[1757575741795,7.3,222.43,222.4,7.57]
[1757575741991,16.21461517,222.44,222.4,7.57]
[1757575742192,7.3,222.43,222.4,7.57]
[1757575742393,16.21461517,222.44,222.4,7.57]
[1757575742594,7.3,222.43,222.4,7.57]
[1757575742891,16.21461517,222.44,222.4,7.57]
[1757575743194,7.3,222.43,222.39,33.72]
[1757575743494,7.3,222.43,222.39,41.29]
[1757575744595,16.21461517,222.44,222.39,41.29]
[1757575744894,7.3,222.42,222.39,41.29]
[1757575745095,7.3,222.43,222.39,41.29]
[1757575747896,7.3,222.42,222.39,41.29]
[1757575749296,16.21461517,222.44,222.39,33.72]
[1757575749594,7.3,222.43,222.39,33.72]
[1757575750192,16.21461517,222.44,222.39,33.72]
[1757575750393,7.3,222.43,222.39,33.72]
[1757575750795,16.21461517,222.44,222.39,33.72]
[1757575751196,7.3,222.43,222.39,33.72]
[1757575751397,16.21461517,222.44,222.39,33.72]
[1757575751701,7.3,222.43,222.39,41.29]
[1757575753004,7.3,222.42,222.39,41.29]
[1757575753195,7.3,222.43,222.39,41.29]
[1757575754301,7.3,222.42,222.39,41.29]
[1757575758907,7.3,222.42,222.39,33.72]
[1757575759108,7.3,222.42,222.4,7.57]
[1757575759607,7.3,222.54,222.4,7.57]
[1757575760296,7.3,222.52,222.4,7.57]
[1757575763509,7.3,222.52,222.4,10.1715217]
[1757575763709,7.3,222.52,222.41,7.57]
[1757575771122,13.77,222.53,222.41,7.57]
[1757575772622,20.77,222.53,222.41,7.57]
[1757575786425,7.0,222.49,222.42,20.04]
[1757575786728,2.6015217,222.5,222.42,20.04]
[1757575786926,7.0,222.52,222.42,20.04]
[1757575787628,13.77,222.53,222.42,20.04]
[1757575787925,7.0,222.52,222.42,20.04]
[1757575788423,13.77,222.53,222.42,20.04]
[1757575789325,2.6015217,222.54,222.42,20.04]
[1757575789620,7.0,222.53,222.42,20.04]
[1757575790219,2.6015217,222.54,222.42,20.04]
[1757575790723,7.0,222.53,222.42,20.04]
[1757575791225,2.6015217,222.54,222.42,20.04]
[1757575791427,7.0,222.49,222.42,20.04]
[1757575792024,2.6015217,222.5,222.42,20.04]
[1757575792226,7.0,222.49,222.42,20.04]
[1757575792529,2.6015217,222.5,222.38,7.19]
[1757575792726,7.0,222.45,222.38,7.19]
[1757575793028,2.6015217,222.46,222.39,109.82]
[1757575794122,7.0,222.44,222.4,0.02849229]
[1757575794320,7.0,222.41,222.4,0.02849229]
[1757575800033,6.97,222.44,222.4,109.84849229]
[1757575800235,6.97,222.41,222.4,0.02849229]
[1757575800434,6.97,222.41,222.37,411.8]
[1757575800633,2.6015217,222.42,222.37,411.8]
[1757575800834,6.97,222.41,222.37,411.8]